Workbook

Sheet Payback
B3: Return on Investment Calculation for Tin top cover placement solution
B4: Production Data for 15 Kg Oil Tin
H5: Comments
C6: Productivity | D6: 17 | E6: Tin / Min | H6: Given by Customer
C7: Tins per Hour | D7: =D6*60 -> 1020 | E7: Tins | F7: T1 | H7: Productivity based on given data
C8: Hours per day | D8: 16 | E8: Hours | F8: H1
C9: Tins per day | D9: =D8*D7 -> 16320 | E9: Tins | F9: T2 = T1 x H1
C10: Days per annum | D10: 300 | E10: Days | F10: D1
C11: Tins per annum | D11: =D9*D10 -> 4896000 | E11: Tins | F11: T3 = T2 x D1
C12: Tonnage per day | D12: =D9*15/1000 -> 244.8 | E12: tpd | F12: W1 = T2 x 15
C13: Tonnage per Annum | D13: =D12*D10 -> 73440 | E13: tpa | F13: W2 = W1 x D1
B15: Strapping Cost
C16: Cost of Strapping per Tin | D16: ='Cost Calculator'!D7 -> 1.596 | E16: INR | F16: C1 | H16: Refer Cost Calculator Sheet'!D11
C17: Cost of strapping per annum | D17: =(D16*D11)/100000 -> 78.14016 | E17: L INR | F17: C1A
C25: Cost of labour per annum | D25: ='Cost Calculator'!L8 -> 6 | E25: L INR | F25: C2A | H25: Refer Cost Calculator Sheet'!L12
C26: Total cost per annum | D26: =(D25+D17) -> 84.14016 | E26: L INR | F26: C3A
B28: Hot Glue Cost
C29: Cost of glue per Tin | D29: ='Cost Calculator'!I12 -> 0.27 | F29: C3 | H29: Refere Cost Calculator Sheet
C30: Cost of glue per annum | D30: =(D29*D11)/100000 -> 13.2192 | E30: L INR | F30: C3A
B32: Power Cost
C33: Power (kw) of machine | D33: 1.5 | E33: kW
C34: Units consumed per day | D34: =D33*D8 -> 24 | E34: kWh
C35: Cost per unit | D35: 6.5 | E35: Rs.
C36: Annual Power Cost | D36: =D35*D34*D10/100000 -> 0.468 | E36: L INR | F36: PC
B38: Compressed Air Cost
C39: Power (kw) of compressor | D39: 2 | E39: kW
C40: Units consumed per day | D40: =D39*D8 -> 32 | E40: kWh
C41: Cost per unit | D41: 6.5 | E41: Rs.
C42: Annual Power Cost | D42: =D41*D40*D10/100000 -> 0.624 | E42: L INR | F42: CC
B44: Maintenance Cost
C45: Consumables | D45: 0.4 | E45: L INR | F45: rubber parts
C46: Repair | D46: 0.75 | E46: L INR | F46: assumed
D47: =D46+D45 -> 1.15 | E47: L INR | F47: MC
B49: Cost saving
C50: Material cost saving per yr | D50: =D17-D30-D36-D42-D47 -> 62.67896 | E50: L INR | F50: B1=C3A - C2A - PC - CC - MC
C51: Labour Saving per year | D51: =D25-0 -> 6 | E51: L INR | F51: B2=S2-0
C52: Total Saving per year | D52: =D50+D51 -> 68.67896 | E52: L INR | F52: B3=B1+B2
B53: Investment Data
C54: One time investment for MOC MS | E54: L INR | F54: Inv1 | H54: Please connect for a quotation.
B55: B> | C55: Man power for operating forklifts | E55: persons/ shift | F55: N1
D56: 3 | E56: shifts/ day | F56: N2
D57: =D56*D55 -> 0 | E57: people required | F57: N3 = N1 x N2
C59: Salary p.a. | D59: 1 | F59: S1
C61: Yearly man power cost | D61: =D59*D57 -> 0 | F61: S2 = S1 x N3
C62: Payback Period | D62: =D54/D52 -> 0 | E62: Year | F62: PP = Inv1/ B3
C64: User has to input this data based on the case in hand
C65: Machine specific data
C66: Data from Another sheet

Sheet Cost Calculator
B3: Costing Details
B4: Strap Cost | F4: Braid Glue | H4: Cold Glue | I4: (NA) | K4: Labour Cost
B5: Strap per Tin (m) | D5: 2.28 | F5: gms/ m | H5: gms/ m | I5: 0 | K5: No. of labour Saved | L5: 2
B6: Strap Rate (Rs./m) | D6: 0.7 | F6: Price per kg | G6: 300 | H6: Price per kg | I6: 202 | K6: Rate (Rs/shift) | L6: 500
B7: Strap cost per Tin (Rs.) | D7: =D5*D6 -> 1.596 | F7: Length of each side | H7: Length of each side | I7: 0.23 | K7: Shifts per day | L7: 2
F8: No of sides | H8: No of sides | I8: 4 | K8: Labour per annum (L INR) | L8: =(L5*L6*L7*Payback!D10)/100000 -> 6
F9: Grammage per tin | G9: 0.9 | I9: =I8*I7*I5 -> 0
F10: Cost of Hot Glue per Tin | G10: =G9/1000*G6 -> 0.27 | H10: Cost of Cold Glue per Tin | I10: =I9/1000*I6 -> 0
F12: Total Cost of Glue (Hot + Cold) per tin (INR) | I12: =I10+G10 -> 0.27
C14: Data to be input by customer
C15: Data used in Sheet 'Payback'
C16: Machine Data and calculation. Do no disturb.
